[Event "Chessable Masters - Torneo preliminare"]
[White "Kramnik, Vladimir"]
[Black "Smirnov, Pavel"]
[WhiteFideId "4101588"]
[BlackFideId "4123425"]
[WhiteElo "2756"]
[BlackElo "2470"]
[Result "1-0"]
[Round "9"]
[TimeControl "600+2"]
[Date "2023.03.13"]
[WhiteClock "0:00:11"]
[BlackClock "0:00:06"]

1. c4 {[%clk 0:10:01]}  e6 {[%clk 0:10:00]} 2. Nc3 {[%clk 0:10:00]}  d5 {[%clk 0:10:00]} 3. d4 {[%clk 0:10:01]}  c6 {[%clk 0:10:01]} 4. e3 {[%clk 0:09:56]}  Nf6 {[%clk 0:10:01]} 5. Nf3 {[%clk 0:09:56]}  Nbd7 {[%clk 0:10:01]} 6. Be2 {[%clk 0:09:55]}  Bd6 {[%clk 0:10:01]} 7. O-O {[%clk 0:09:56]}  O-O {[%clk 0:10:02]} 8. b3 {[%clk 0:09:57]}  b6 {[%clk 0:10:02]} 9. Bb2 {[%clk 0:09:58]}  Bb7 {[%clk 0:10:03]} 10. Rc1 {[%clk 0:09:54]}  Rc8 {[%clk 0:09:54]} 11. Rc2 {[%clk 0:09:45]}  Qe7 {[%clk 0:09:50]} 12. Qc1 {[%clk 0:09:01]}  Rfe8 {[%clk 0:09:38]} 13. Rd1 {[%clk 0:08:57]}  a6 {[%clk 0:09:16]} 14. h3 {[%clk 0:08:24]}  b5 {[%clk 0:08:35]} 15. a3 {[%clk 0:08:06]}  h6 {[%clk 0:07:40]} 16. a4 {[%clk 0:06:59]}  b4 {[%clk 0:06:53]} 17. Nb1 {[%clk 0:06:59]}  Ne4 {[%clk 0:06:40]} 18. Nbd2 {[%clk 0:06:42]}  f5 {[%clk 0:06:29]} 19. Ne5 {[%clk 0:05:47]}  Nxe5 {[%clk 0:06:05]} 20. dxe5 {[%clk 0:05:47]}  Bb8 {[%clk 0:05:37]} 21. Nxe4 {[%clk 0:05:37]}  fxe4 {[%clk 0:05:32]} 22. Bg4 {[%clk 0:05:10]}  Rcd8 {[%clk 0:05:22]} 23. Bd4 {[%clk 0:05:01]}  Qg5 {[%clk 0:04:56]} 24. cxd5 {[%clk 0:04:49]}  exd5 {[%clk 0:04:48]} 25. Rxc6 {[%clk 0:04:47]}  Bxc6 {[%clk 0:04:43]} 26. Qxc6 {[%clk 0:04:47]}  Bxe5 {[%clk 0:04:41]} 27. Bb6 {[%clk 0:04:28]}  Rb8 {[%clk 0:04:21]} 28. a5 {[%clk 0:04:17]}  Kh8 {[%clk 0:03:51]} 29. Rxd5 {[%clk 0:04:08]}  h5 {[%clk 0:03:45]} 30. Bd7 {[%clk 0:03:48]}  Re7 {[%clk 0:03:45]} 31. Bc8 {[%clk 0:03:32]}  Qf6 {[%clk 0:02:05]} 32. Rd8+ {[%clk 0:03:25]}  Kh7 {[%clk 0:02:04]} 33. Qxe4+ {[%clk 0:03:19]}  g6 {[%clk 0:01:57]} 34. Qd5 {[%clk 0:03:05]}  Rg7 {[%clk 0:01:11]} 35. Bxa6 {[%clk 0:01:44]}  Rxd8 {[%clk 0:01:11]} 36. Bxd8 {[%clk 0:01:38]}  Qf5 {[%clk 0:00:52]} 37. f4 {[%clk 0:00:11]}  Qb1+ {[%clk 0:00:15]} 38. Kh2 {[%clk 0:00:10]}  Bc3 {[%clk 0:00:15]} 39. Bd3 {[%clk 0:00:10]}  Qe1 {[%clk 0:00:05]} 40. Qxh5+ {[%clk 0:00:10]}  Kg8 {[%clk 0:00:06]} 41. Bc4+ {[%clk 0:00:11]}  Kf8 {[%clk 0:00:06]} 42. Qh8+ {[%clk 0:00:11]} 1-0


[Site "Internet"]

[Event "Chessable Masters - Torneo preliminare"]
[White "Oparin, Grigoriy"]
[Black "Vallejo Pons, Francisco"]
[WhiteFideId "24125890"]
[BlackFideId "2205530"]
[WhiteElo "2650"]
[BlackElo "2662"]
[Result "1-0"]
[Round "9"]
[TimeControl "600+2"]
[Date "2023.03.13"]
[WhiteClock "0:01:45"]
[BlackClock "0:00:04"]

1. d4 {[%clk 0:10:01]}  e6 {[%clk 0:09:48]} 2. c4 {[%clk 0:10:02]}  b6 {[%clk 0:09:49]} 3. a3 {[%clk 0:09:44]}  Bb7 {[%clk 0:09:41]} 4. Nc3 {[%clk 0:09:45]}  Nf6 {[%clk 0:09:39]} 5. Nf3 {[%clk 0:09:29]}  Ne4 {[%clk 0:09:29]} 6. Qc2 {[%clk 0:09:22]}  Nxc3 {[%clk 0:08:56]} 7. Qxc3 {[%clk 0:09:23]}  Be7 {[%clk 0:08:18]} 8. g3 {[%clk 0:09:18]}  Bf6 {[%clk 0:07:50]} 9. Qd3 {[%clk 0:09:13]}  c5 {[%clk 0:07:19]} 10. dxc5 {[%clk 0:09:09]}  Na6 {[%clk 0:06:54]} 11. Bg2 {[%clk 0:07:53]}  Nxc5 {[%clk 0:06:53]} 12. Qd1 {[%clk 0:07:50]}  d5 {[%clk 0:06:35]} 13. Nd2 {[%clk 0:07:41]}  O-O {[%clk 0:05:43]} 14. O-O {[%clk 0:07:42]}  Rc8 {[%clk 0:05:37]} 15. Rb1 {[%clk 0:05:29]}  dxc4 {[%clk 0:04:46]} 16. Nxc4 {[%clk 0:05:31]}  Qxd1 {[%clk 0:02:32]} 17. Rxd1 {[%clk 0:05:33]}  Ba6 {[%clk 0:02:34]} 18. Nd6 {[%clk 0:05:23]}  Bxe2 {[%clk 0:02:26]} 19. Re1 {[%clk 0:05:01]}  Bd3 {[%clk 0:01:58]} 20. Nxc8 {[%clk 0:05:00]}  Rxc8 {[%clk 0:01:51]} 21. Be3 {[%clk 0:04:53]}  Bxb1 {[%clk 0:01:47]} 22. Rxb1 {[%clk 0:04:55]}  Na4 {[%clk 0:01:22]} 23. b3 {[%clk 0:04:56]}  Nc3 {[%clk 0:01:23]} 24. Re1 {[%clk 0:04:56]}  Kf8 {[%clk 0:01:07]} 25. a4 {[%clk 0:04:47]}  Nd5 {[%clk 0:00:58]} 26. Bxd5 {[%clk 0:04:41]}  exd5 {[%clk 0:01:00]} 27. Rd1 {[%clk 0:04:42]}  d4 {[%clk 0:00:54]} 28. Bd2 {[%clk 0:04:37]}  Ke7 {[%clk 0:00:51]} 29. Kf1 {[%clk 0:04:30]}  Rc2 {[%clk 0:00:35]} 30. Ke2 {[%clk 0:03:29]}  Rb2 {[%clk 0:00:35]} 31. Rc1 {[%clk 0:03:26]}  Kd6 {[%clk 0:00:29]} 32. b4 {[%clk 0:03:25]}  Rb3 {[%clk 0:00:14]} 33. Rc8 {[%clk 0:02:51]}  Kd5 {[%clk 0:00:15]} 34. Ra8 {[%clk 0:02:18]}  d3+ {[%clk 0:00:09]} 35. Kf3 {[%clk 0:02:18]}  Bd4 {[%clk 0:00:08]} 36. Rd8+ {[%clk 0:02:09]}  Kc4 {[%clk 0:00:06]} 37. Ke4 {[%clk 0:01:50]}  Bxf2 {[%clk 0:00:06]} 38. Rc8+ {[%clk 0:01:50]}  Bc5 {[%clk 0:00:08]} 39. bxc5 {[%clk 0:01:50]}  bxc5 {[%clk 0:00:10]} 40. Be3 {[%clk 0:01:48]}  Rb4 {[%clk 0:00:04]} 41. Rxc5+ {[%clk 0:01:47]}  Kb3+ {[%clk 0:00:04]} 42. Kxd3 {[%clk 0:01:48]}  Rxa4 {[%clk 0:00:02]} 43. Rc7 {[%clk 0:01:50]}  a5 {[%clk 0:00:02]} 44. Rxf7 {[%clk 0:01:51]}  Ra2 {[%clk 0:00:03]} 45. h4 {[%clk 0:01:50]}  Rg2 {[%clk 0:00:04]} 46. Rxg7 {[%clk 0:01:50]}  a4 {[%clk 0:00:03]} 47. Rb7+ {[%clk 0:01:49]}  Ka2 {[%clk 0:00:03]} 48. Bf4 {[%clk 0:01:51]}  a3 {[%clk 0:00:04]} 49. Rxh7 {[%clk 0:01:51]}  Kb3 {[%clk 0:00:04]} 50. Rb7+ {[%clk 0:01:52]}  Ka4 {[%clk 0:00:05]} 51. Ra7+ {[%clk 0:01:52]}  Kb3 {[%clk 0:00:06]} 52. Ke4 {[%clk 0:01:49]}  a2 {[%clk 0:00:06]} 53. Kf3 {[%clk 0:01:48]}  Rg1 {[%clk 0:00:06]} 54. Be5 {[%clk 0:01:43]}  Re1 {[%clk 0:00:05]} 55. Bg7 {[%clk 0:01:43]}  Rf1+ {[%clk 0:00:04]} 56. Kg4 {[%clk 0:01:44]}  Rf7 {[%clk 0:00:02]} 57. Rxf7 {[%clk 0:01:44]}  a1=Q {[%clk 0:00:04]} 58. Bxa1 {[%clk 0:01:45]} 1-0


[Site "Internet"]

[Event "Chessable Masters - Torneo preliminare"]
[White "Gukesh, D"]
[Black "Wagner, Dennis"]
[WhiteFideId "46616543"]
[BlackFideId "24650684"]
[WhiteElo "2629"]
[BlackElo "2456"]
[Result "1-0"]
[Round "9"]
[TimeControl "600+2"]
[Date "2023.03.13"]
[WhiteClock "0:05:04"]
[BlackClock "0:02:21"]

1. d4 {[%clk 0:10:01]}  Nf6 {[%clk 0:10:00]} 2. c4 {[%clk 0:10:03]}  e6 {[%clk 0:10:01]} 3. Nf3 {[%clk 0:10:04]}  d5 {[%clk 0:10:02]} 4. Nc3 {[%clk 0:10:05]}  c5 {[%clk 0:09:57]} 5. cxd5 {[%clk 0:10:02]}  cxd4 {[%clk 0:09:55]} 6. Qxd4 {[%clk 0:10:03]}  exd5 {[%clk 0:09:53]} 7. Bg5 {[%clk 0:10:04]}  Be7 {[%clk 0:09:48]} 8. e3 {[%clk 0:10:04]}  O-O {[%clk 0:09:47]} 9. Rd1 {[%clk 0:10:03]}  Nc6 {[%clk 0:09:38]} 10. Qa4 {[%clk 0:10:03]}  Be6 {[%clk 0:09:31]} 11. Bb5 {[%clk 0:10:01]}  Qb6 {[%clk 0:07:49]} 12. Bxf6 {[%clk 0:09:12]}  Bxf6 {[%clk 0:07:51]} 13. Nxd5 {[%clk 0:09:13]}  Bxd5 {[%clk 0:07:52]} 14. Rxd5 {[%clk 0:09:14]}  Rad8 {[%clk 0:06:50]} 15. Bxc6 {[%clk 0:07:52]}  bxc6 {[%clk 0:06:36]} 16. Rxd8 {[%clk 0:07:49]}  Rxd8 {[%clk 0:06:21]} 17. b3 {[%clk 0:07:46]}  Bc3+ {[%clk 0:06:05]} 18. Ke2 {[%clk 0:07:47]}  Qb5+ {[%clk 0:05:18]} 19. Qxb5 {[%clk 0:07:45]}  cxb5 {[%clk 0:05:20]} 20. Rd1 {[%clk 0:07:27]}  Rxd1 {[%clk 0:05:20]} 21. Kxd1 {[%clk 0:07:29]}  Kf8 {[%clk 0:05:21]} 22. Nd4 {[%clk 0:07:20]}  a6 {[%clk 0:05:16]} 23. Ke2 {[%clk 0:07:22]}  Ke7 {[%clk 0:04:57]} 24. Kd3 {[%clk 0:07:23]}  Be1 {[%clk 0:04:57]} 25. f4 {[%clk 0:07:24]}  g6 {[%clk 0:04:52]} 26. Nf3 {[%clk 0:06:57]}  Ba5 {[%clk 0:04:50]} 27. e4 {[%clk 0:06:44]}  f6 {[%clk 0:04:46]} 28. e5 {[%clk 0:06:42]}  fxe5 {[%clk 0:04:42]} 29. fxe5 {[%clk 0:06:24]}  Kd7 {[%clk 0:03:50]} 30. Nd4 {[%clk 0:06:19]}  h5 {[%clk 0:03:34]} 31. Ke4 {[%clk 0:06:18]}  Bc3 {[%clk 0:03:31]} 32. Kd5 {[%clk 0:06:15]}  g5 {[%clk 0:03:12]} 33. h3 {[%clk 0:06:10]}  g4 {[%clk 0:03:11]} 34. hxg4 {[%clk 0:06:08]}  hxg4 {[%clk 0:03:13]} 35. Nf5 {[%clk 0:06:08]}  Bd2 {[%clk 0:02:59]} 36. e6+ {[%clk 0:06:08]}  Kc7 {[%clk 0:03:00]} 37. Ke5 {[%clk 0:06:03]}  Bg5 {[%clk 0:02:59]} 38. Kd5 {[%clk 0:05:23]}  Bf4 {[%clk 0:02:57]} 39. Ne7 {[%clk 0:05:18]}  Bc1 {[%clk 0:02:50]} 40. Ng6 {[%clk 0:05:15]}  g3 {[%clk 0:02:44]} 41. Ne7 {[%clk 0:05:07]}  Be3 {[%clk 0:02:32]} 42. Nf5 {[%clk 0:05:07]}  Bf2 {[%clk 0:02:33]} 43. Ke5 {[%clk 0:05:08]}  Be1 {[%clk 0:02:21]} 44. Kf6 {[%clk 0:05:04]} 1-0


[Site "Internet"]

[Event "Chessable Masters - Torneo preliminare"]
[White "Antipov, Mikhail Al."]
[Black "Michalik, Peter"]
[WhiteFideId "4107012"]
[BlackFideId "14907526"]
[WhiteElo "2593"]
[BlackElo "2526"]
[Result "0-1"]
[Round "9"]
[TimeControl "600+2"]
[Date "2023.03.13"]
[WhiteClock "0:00:09"]
[BlackClock "0:03:42"]

1. e4 {[%clk 0:10:01]}  e5 {[%clk 0:10:00]} 2. Nf3 {[%clk 0:10:00]}  Nc6 {[%clk 0:10:00]} 3. Bc4 {[%clk 0:10:00]}  Nf6 {[%clk 0:10:00]} 4. d3 {[%clk 0:10:00]}  Bc5 {[%clk 0:09:59]} 5. Nbd2 {[%clk 0:10:00]}  O-O {[%clk 0:09:58]} 6. O-O {[%clk 0:10:00]}  d6 {[%clk 0:09:58]} 7. c3 {[%clk 0:10:01]}  a5 {[%clk 0:09:56]} 8. Bb5 {[%clk 0:09:50]}  Ba7 {[%clk 0:09:53]} 9. h3 {[%clk 0:09:47]}  Ne7 {[%clk 0:09:53]} 10. d4 {[%clk 0:09:36]}  exd4 {[%clk 0:09:38]} 11. cxd4 {[%clk 0:09:35]}  d5 {[%clk 0:09:40]} 12. e5 {[%clk 0:09:36]}  Ne4 {[%clk 0:09:40]} 13. Bd3 {[%clk 0:09:06]}  Bf5 {[%clk 0:09:41]} 14. Qe2 {[%clk 0:09:04]}  Nc6 {[%clk 0:08:58]} 15. Nxe4 {[%clk 0:09:02]}  dxe4 {[%clk 0:08:59]} 16. Bxe4 {[%clk 0:09:04]}  Nxd4 {[%clk 0:08:57]} 17. Nxd4 {[%clk 0:09:05]}  Bxe4 {[%clk 0:08:58]} 18. Qxe4 {[%clk 0:09:04]}  Qxd4 {[%clk 0:08:54]} 19. Qxb7 {[%clk 0:09:05]}  Qxe5 {[%clk 0:08:51]} 20. Bd2 {[%clk 0:08:13]}  Rfb8 {[%clk 0:08:49]} 21. Qf3 {[%clk 0:08:14]}  Bd4 {[%clk 0:08:33]} 22. Rac1 {[%clk 0:07:45]}  Bxb2 {[%clk 0:08:32]} 23. Bf4 {[%clk 0:07:46]}  Qf6 {[%clk 0:08:31]} 24. Rxc7 {[%clk 0:07:47]}  Re8 {[%clk 0:07:51]} 25. Rc6 {[%clk 0:06:20]}  Qf5 {[%clk 0:07:40]} 26. Rd1 {[%clk 0:05:33]}  Be5 {[%clk 0:07:28]} 27. Be3 {[%clk 0:05:14]}  Qxf3 {[%clk 0:07:30]} 28. gxf3 {[%clk 0:05:16]}  a4 {[%clk 0:07:16]} 29. Rd7 {[%clk 0:04:59]}  h6 {[%clk 0:07:14]} 30. Kg2 {[%clk 0:04:49]}  Rec8 {[%clk 0:07:01]} 31. Ra7 {[%clk 0:04:39]}  Rcb8 {[%clk 0:06:56]} 32. f4 {[%clk 0:03:25]}  Bb2 {[%clk 0:06:49]} 33. Rb6 {[%clk 0:03:21]}  a3 {[%clk 0:06:46]} 34. Kf3 {[%clk 0:02:07]}  Re8 {[%clk 0:06:23]} 35. Rxa8 {[%clk 0:01:04]}  Rxa8 {[%clk 0:06:25]} 36. Rc6 {[%clk 0:01:05]}  Ra5 {[%clk 0:06:11]} 37. Bc5 {[%clk 0:01:03]}  Ra4 {[%clk 0:06:07]} 38. Rc8+ {[%clk 0:00:41]}  Kh7 {[%clk 0:06:07]} 39. Rc7 {[%clk 0:00:43]}  Kg6 {[%clk 0:05:39]} 40. Be3 {[%clk 0:00:28]}  f5 {[%clk 0:05:22]} 41. Ke2 {[%clk 0:00:15]}  Kh5 {[%clk 0:05:16]} 42. Rc5 {[%clk 0:00:15]}  g6 {[%clk 0:05:15]} 43. Rc6 {[%clk 0:00:16]}  Bd4 {[%clk 0:05:09]} 44. Bd2 {[%clk 0:00:04]}  Ra8 {[%clk 0:04:58]} 45. Rd6 {[%clk 0:00:03]}  Re8+ {[%clk 0:04:56]} 46. Kf3 {[%clk 0:00:02]}  Bb2 {[%clk 0:04:57]} 47. Rd3 {[%clk 0:00:04]}  Re4 {[%clk 0:04:52]} 48. Be3 {[%clk 0:00:03]}  Ra4 {[%clk 0:04:52]} 49. Rb3 {[%clk 0:00:03]}  Ra6 {[%clk 0:04:52]} 50. Kg3 {[%clk 0:00:03]}  Bf6 {[%clk 0:04:46]} 51. Kf3 {[%clk 0:00:04]}  Ra5 {[%clk 0:04:43]} 52. Bc1 {[%clk 0:00:04]}  Bb2 {[%clk 0:04:41]} 53. Bd2 {[%clk 0:00:05]}  Ra4 {[%clk 0:04:41]} 54. Bb4 {[%clk 0:00:04]}  g5 {[%clk 0:04:38]} 55. fxg5 {[%clk 0:00:05]}  hxg5 {[%clk 0:04:40]} 56. Kg2 {[%clk 0:00:04]}  Ra6 {[%clk 0:04:38]} 57. Bc5 {[%clk 0:00:04]}  Ra5 {[%clk 0:04:35]} 58. Bf8 {[%clk 0:00:05]}  Ra8 {[%clk 0:04:34]} 59. Be7 {[%clk 0:00:06]}  Ra7 {[%clk 0:04:35]} 60. Bd6 {[%clk 0:00:07]}  Ra6 {[%clk 0:04:37]} 61. Rd3 {[%clk 0:00:09]}  Ra4 {[%clk 0:04:30]} 62. Bf8 {[%clk 0:00:08]}  Ra8 {[%clk 0:04:30]} 63. Be7 {[%clk 0:00:09]}  Ra7 {[%clk 0:04:30]} 64. Bc5 {[%clk 0:00:10]}  Ra5 {[%clk 0:04:31]} 65. Bd6 {[%clk 0:00:12]}  Ra7 {[%clk 0:04:30]} 66. Kf1 {[%clk 0:00:10]}  Rd7 {[%clk 0:04:29]} 67. Ke2 {[%clk 0:00:11]}  Rd8 {[%clk 0:04:28]} 68. Rd5 {[%clk 0:00:05]}  Kg6 {[%clk 0:04:18]} 69. f3 {[%clk 0:00:05]}  Rh8 {[%clk 0:03:56]} 70. Rd3 {[%clk 0:00:04]}  Rxh3 {[%clk 0:03:56]} 71. Bxa3 {[%clk 0:00:06]}  Rh2+ {[%clk 0:03:53]} 72. Kf1 {[%clk 0:00:06]}  Be5 {[%clk 0:03:48]} 73. Bd6 {[%clk 0:00:06]}  Kf6 {[%clk 0:03:43]} 74. a4 {[%clk 0:00:04]}  Ra2 {[%clk 0:03:43]} 75. Bxe5+ {[%clk 0:00:03]}  Kxe5 {[%clk 0:03:44]} 76. Rc3 {[%clk 0:00:05]}  Kf4 {[%clk 0:03:44]} 77. Rd3 {[%clk 0:00:02]}  Rxa4 {[%clk 0:03:44]} 78. Kg2 {[%clk 0:00:03]}  Ra2+ {[%clk 0:03:45]} 79. Kf1 {[%clk 0:00:04]}  Kg3 {[%clk 0:03:41]} 80. Ke1 {[%clk 0:00:05]}  Ra5 {[%clk 0:03:40]} 81. Kf1 {[%clk 0:00:06]}  f4 {[%clk 0:03:41]} 82. Rc3 {[%clk 0:00:06]}  Ra1+ {[%clk 0:03:39]} 83. Ke2 {[%clk 0:00:07]}  Ra2+ {[%clk 0:03:41]} 84. Ke1 {[%clk 0:00:07]}  Kg2 {[%clk 0:03:39]} 85. Rc5 {[%clk 0:00:08]}  g4 {[%clk 0:03:40]} 86. fxg4 {[%clk 0:00:09]}  f3 {[%clk 0:03:42]} 0-1


[Site "Internet"]

[Event "Chessable Masters - Torneo preliminare"]
[White "Kamsky, Gata"]
[Black "Sarana, Alexey"]
[WhiteFideId "2000024"]
[BlackFideId "24133795"]
[WhiteElo "2630"]
[BlackElo "2643"]
[Result "1/2-1/2"]
[Round "9"]
[TimeControl "600+2"]
[Date "2023.03.13"]
[WhiteClock "0:09:48"]
[BlackClock "0:09:55"]

1. e4 {[%clk 0:10:01]}  c5 {[%clk 0:10:00]} 2. Nf3 {[%clk 0:09:54]}  d6 {[%clk 0:10:01]} 3. d4 {[%clk 0:09:54]}  cxd4 {[%clk 0:10:03]} 4. Nxd4 {[%clk 0:09:55]}  Nf6 {[%clk 0:10:05]} 5. Nc3 {[%clk 0:09:55]}  a6 {[%clk 0:10:06]} 6. a4 {[%clk 0:09:56]}  e5 {[%clk 0:10:07]} 7. Nf3 {[%clk 0:09:57]}  Be7 {[%clk 0:10:08]} 8. Bc4 {[%clk 0:09:58]}  Be6 {[%clk 0:10:09]} 9. Qe2 {[%clk 0:09:58]}  Qc8 {[%clk 0:10:05]} 10. Ba2 {[%clk 0:09:52]}  Nbd7 {[%clk 0:10:01]} 11. O-O {[%clk 0:09:52]}  Nc5 {[%clk 0:09:54]} 12. Rd1 {[%clk 0:09:50]}  O-O {[%clk 0:09:55]} 13. Bg5 {[%clk 0:09:48]} 1/2-1/2


[Site "Internet"]

[Event "Chessable Masters - Torneo preliminare"]
[White "Alonso Rosell, Alvar"]
[Black "Henriquez Villagra, Cristobal"]
[WhiteFideId "2270544"]
[BlackFideId "3409350"]
[WhiteElo "2473"]
[BlackElo "2574"]
[Result "1-0"]
[Round "9"]
[TimeControl "600+2"]
[Date "2023.03.13"]
[WhiteClock "0:04:20"]
[BlackClock "0:01:13"]

1. d4 {[%clk 0:10:01]}  g6 {[%clk 0:09:55]} 2. c4 {[%clk 0:10:02]}  d6 {[%clk 0:09:56]} 3. Nf3 {[%clk 0:10:02]}  Bg7 {[%clk 0:09:54]} 4. g3 {[%clk 0:10:02]}  Nf6 {[%clk 0:09:53]} 5. Bg2 {[%clk 0:10:01]}  O-O {[%clk 0:09:55]} 6. Nc3 {[%clk 0:10:02]}  Nc6 {[%clk 0:09:56]} 7. d5 {[%clk 0:10:03]}  Na5 {[%clk 0:09:51]} 8. b3 {[%clk 0:10:04]}  c5 {[%clk 0:08:51]} 9. Bb2 {[%clk 0:10:03]}  a6 {[%clk 0:08:49]} 10. O-O {[%clk 0:10:02]}  b5 {[%clk 0:08:43]} 11. cxb5 {[%clk 0:10:04]}  axb5 {[%clk 0:08:45]} 12. Nxb5 {[%clk 0:10:00]}  Ba6 {[%clk 0:08:46]} 13. Nc3 {[%clk 0:09:51]}  Qc7 {[%clk 0:08:10]} 14. Rb1 {[%clk 0:09:35]}  Rfb8 {[%clk 0:08:09]} 15. Ba1 {[%clk 0:09:29]}  Rb4 {[%clk 0:08:00]} 16. Nd2 {[%clk 0:09:15]}  Rab8 {[%clk 0:07:53]} 17. Nce4 {[%clk 0:09:01]}  Nxd5 {[%clk 0:07:09]} 18. Bxg7 {[%clk 0:08:42]}  Kxg7 {[%clk 0:07:11]} 19. a3 {[%clk 0:08:12]}  Rd4 {[%clk 0:06:44]} 20. e3 {[%clk 0:08:12]}  Rd3 {[%clk 0:05:57]} 21. Qc2 {[%clk 0:08:11]}  Nf6 {[%clk 0:04:45]} 22. Nxf6 {[%clk 0:07:49]}  exf6 {[%clk 0:04:46]} 23. Rfd1 {[%clk 0:07:05]}  Qa7 {[%clk 0:03:03]} 24. Be4 {[%clk 0:06:40]}  c4 {[%clk 0:02:55]} 25. Bxd3 {[%clk 0:06:14]}  cxd3 {[%clk 0:02:57]} 26. Qc3 {[%clk 0:06:15]}  Qb6 {[%clk 0:02:56]} 27. b4 {[%clk 0:05:54]}  Nc4 {[%clk 0:01:46]} 28. Nxc4 {[%clk 0:05:34]}  Qc6 {[%clk 0:01:47]} 29. b5 {[%clk 0:05:14]}  Rxb5 {[%clk 0:01:47]} 30. Rxb5 {[%clk 0:04:38]}  Bxb5 {[%clk 0:01:49]} 31. Rc1 {[%clk 0:04:36]}  Qd5 {[%clk 0:01:13]} 32. Nd2 {[%clk 0:04:20]} 1-0


[Site "Internet"]

[Event "Chessable Masters - Torneo preliminare"]
[White "Durarbayli, Vasif"]
[Black "Wei, Yi"]
[WhiteFideId "13402935"]
[BlackFideId "8603405"]
[WhiteElo "2531"]
[BlackElo "2716"]
[Result "1-0"]
[Round "9"]
[TimeControl "600+2"]
[Date "2023.03.13"]
[WhiteClock "0:00:05"]
[BlackClock "0:00:03"]

1. e4 {[%clk 0:10:01]}  e5 {[%clk 0:09:56]} 2. Nf3 {[%clk 0:10:02]}  Nc6 {[%clk 0:09:57]} 3. Bb5 {[%clk 0:10:02]}  a6 {[%clk 0:09:58]} 4. Ba4 {[%clk 0:10:03]}  Nf6 {[%clk 0:09:59]} 5. O-O {[%clk 0:10:04]}  Bc5 {[%clk 0:10:00]} 6. c3 {[%clk 0:10:03]}  b5 {[%clk 0:10:01]} 7. Bb3 {[%clk 0:10:04]}  d6 {[%clk 0:10:02]} 8. d4 {[%clk 0:10:05]}  Bb6 {[%clk 0:10:03]} 9. h3 {[%clk 0:10:02]}  O-O {[%clk 0:09:39]} 10. Be3 {[%clk 0:10:02]}  h6 {[%clk 0:08:54]} 11. dxe5 {[%clk 0:09:36]}  dxe5 {[%clk 0:08:27]} 12. Qe2 {[%clk 0:09:26]}  Bxe3 {[%clk 0:07:58]} 13. Qxe3 {[%clk 0:09:25]}  Qe7 {[%clk 0:07:59]} 14. Nbd2 {[%clk 0:08:39]}  Na5 {[%clk 0:07:48]} 15. a4 {[%clk 0:08:06]}  Bb7 {[%clk 0:07:34]} 16. axb5 {[%clk 0:08:02]}  axb5 {[%clk 0:07:36]} 17. Ba2 {[%clk 0:07:16]}  c5 {[%clk 0:07:19]} 18. Nh4 {[%clk 0:07:04]}  c4 {[%clk 0:07:10]} 19. Nf5 {[%clk 0:06:57]}  Qe6 {[%clk 0:05:58]} 20. Qg3 {[%clk 0:06:33]}  Ne8 {[%clk 0:05:51]} 21. Bb1 {[%clk 0:05:37]}  Kh8 {[%clk 0:04:55]} 22. Nf3 {[%clk 0:04:54]}  Nc6 {[%clk 0:04:33]} 23. Rxa8 {[%clk 0:04:50]}  Bxa8 {[%clk 0:04:34]} 24. Rd1 {[%clk 0:04:38]}  Qf6 {[%clk 0:04:17]} 25. Rd7 {[%clk 0:02:48]}  Kh7 {[%clk 0:04:02]} 26. Nh2 {[%clk 0:02:22]}  Rg8 {[%clk 0:02:22]} 27. Ng4 {[%clk 0:01:46]}  Qe6 {[%clk 0:02:23]} 28. Rd5 {[%clk 0:01:40]}  Kh8 {[%clk 0:01:07]} 29. Qh4 {[%clk 0:01:02]}  Kh7 {[%clk 0:00:36]} 30. Rxb5 {[%clk 0:00:53]}  Nc7 {[%clk 0:00:26]} 31. Rd5 {[%clk 0:00:28]}  Ne8 {[%clk 0:00:06]} 32. Bc2 {[%clk 0:00:16]}  Qg6 {[%clk 0:00:04]} 33. Rd7 {[%clk 0:00:08]}  Nb8 {[%clk 0:00:04]} 34. Rd8 {[%clk 0:00:09]}  Nf6 {[%clk 0:00:02]} 35. Nxf6+ {[%clk 0:00:05]}  Qxf6 {[%clk 0:00:03]} 36. Qxf6 {[%clk 0:00:05]} 1-0


[Site "Internet"]